fUST/lending_fUST_20241114
["ID","MTS","AMOUNT","RATE_DAILY","PERIOD"]
[342175604,1731533440610,-151.0,0.0003029,7]
[342175605,1731533440619,-151.0,0.0003029,7]
[342175606,1731533440628,-151.0,0.0003029,7]
[342175607,1731533440637,-151.0,0.0003029,7]
[342175608,1731533440647,-151.0,0.0003029,7]
[342175609,1731533440656,-151.0,0.0003029,7]
[342175610,1731533440665,-151.0,0.0003029,7]
[342175611,1731533440674,-151.0,0.0003029,7]
[342175612,1731533440684,-151.0,0.0003029,7]
[342175613,1731533440693,-151.0,0.0003029,7]
[342175614,1731533440707,-269.924315,0.0003029,7]
[342175615,1731533440717,-151.0,0.0003029,7]
[342175616,1731533440726,-403.198957,0.0003029,7]
[342175617,1731533440735,-403.198957,0.0003029,7]
[342175618,1731533440745,-403.198957,0.0003029,7]
[342175619,1731533440754,-403.198957,0.0003029,7]
[342175620,1731533440763,-403.198957,0.0003029,7]
[342175621,1731533440772,-403.198957,0.0003029,7]
[342175622,1731533440782,-403.198957,0.0003029,7]
[342175623,1731533440791,-403.198957,0.0003029,7]
[342175624,1731533440801,-403.198957,0.0003029,7]
[342175625,1731533440811,-403.198957,0.0003029,7]
[342175626,1731533440820,-403.198957,0.0003029,7]
[342175627,1731533440830,-403.198957,0.0003029,7]
[342175628,1731533440839,-403.198957,0.0003029,7]
[342175629,1731533440849,-403.198957,0.0003029,7]
[342175630,1731533440859,-403.198957,0.0003029,7]
[342175631,1731533440868,-403.198957,0.0003029,7]
[342175632,1731533440878,-403.198957,0.0003029,7]
[342175633,1731533440888,-403.198957,0.0003029,7]
[342175634,1731533440897,-403.198957,0.0003029,7]
[342175635,1731533440906,-151.0,0.0003029,7]
[342175636,1731533440916,-403.198956,0.0003029,7]
[342175637,1731533440925,-151.0,0.0003029,7]
[342175638,1731533440935,-151.0,0.0003029,7]
[342175639,1731533440944,-151.0,0.0003029,7]
[342175640,1731533440960,-151.0,0.0003029,7]
[342175641,1731533440970,-151.0,0.0003029,7]
[342175642,1731533440980,-151.0,0.0003029,7]
[342175643,1731533440989,-151.0,0.0003029,7]
[342175644,1731533440998,-151.0,0.0003029,7]
[342175645,1731533441008,-151.0,0.0003029,7]
[342175646,1731533441017,-151.0,0.0003029,7]
[342175647,1731533441027,-151.0,0.0003029,7]
[342175648,1731533441037,-171.195903,0.0003029,7]
[342175649,1731533441046,-171.195903,0.0003029,7]
[342175650,1731533441057,-171.195903,0.0003029,7]
[342175651,1731533441067,-171.195903,0.0003029,7]
[342175652,1731533441076,-171.195903,0.0003029,7]
[342175653,1731533441085,-171.195903,0.0003029,7]
[342175654,1731533441095,-171.195903,0.0003029,7]
[342175655,1731533441104,-171.195903,0.0003029,7]
[342175656,1731533441114,-171.195903,0.0003029,7]
[342175657,1731533441123,-171.195903,0.0003029,7]
[342175658,1731533441133,-171.195903,0.0003029,7]
[342175659,1731533441142,-171.195903,0.0003029,7]
[342175660,1731533441151,-171.195903,0.0003029,7]
[342175661,1731533441161,-171.195903,0.0003029,7]
[342175662,1731533441170,-171.195903,0.0003029,7]
[342175663,1731533441180,-171.195903,0.0003029,7]
[342175664,1731533441189,-171.195903,0.0003029,7]
[342175665,1731533441199,-171.195903,0.0003029,7]
[342175666,1731533441213,-171.195903,0.0003029,7]
[342175667,1731533441222,-171.195903,0.0003029,7]
[342175668,1731533441231,-166.087376,0.0003029,7]
[342175669,1731533441240,-364.88444,0.0003029,7]
[342175670,1731533441250,-364.88444,0.0003029,7]
[342175671,1731533441259,-364.88444,0.0003029,7]
[342175672,1731533441268,-364.88444,0.0003029,7]
[342175673,1731533441278,-364.88444,0.0003029,7]
[342175674,1731533441287,-364.88444,0.0003029,7]
[342175675,1731533441296,-364.88444,0.0003029,7]
[342175676,1731533441306,-364.88444,0.0003029,7]
[342175677,1731533441315,-364.88444,0.0003029,7]
[342175678,1731533441325,-364.88444,0.0003029,7]
[342175679,1731533441334,-364.88444,0.0003029,7]
[342175680,1731533441343,-364.88444,0.0003029,7]
[342175681,1731533441352,-364.88444,0.0003029,7]
[342175682,1731533441361,-364.88444,0.0003029,7]
[342175683,1731533441372,-364.88444,0.0003029,7]
[342175684,1731533441381,-364.88444,0.0003029,7]
[342175685,1731533441391,-364.88444,0.0003029,7]
[342175686,1731533441405,-364.88444,0.0003029,7]
[342175687,1731533441414,-364.88444,0.0003029,7]
[342175688,1731533441423,-364.884442,0.0003029,7]
[342175689,1731533441432,-585.7194,0.0003029,7]
[342175690,1731533441442,-151.0,0.0003029,7]
[342175691,1731533441453,-585.7194,0.0003029,7]
[342175692,1731533441462,-151.0,0.0003029,7]
[342175693,1731533441472,-151.0,0.0003029,7]
[342175694,1731533441480,-585.7194,0.0003029,7]
[342175695,1731533441490,-151.0,0.0003029,7]
[342175696,1731533441499,-151.0,0.0003029,7]
[342175697,1731533441508,-585.7194,0.0003029,7]
[342175698,1731533441518,-151.0,0.0003029,7]
[342175699,1731533441526,-585.7194,0.0003029,7]
[342175700,1731533441536,-151.0,0.0003029,7]
[342175701,1731533441545,-585.7194,0.0003029,7]
[342175702,1731533441555,-151.0,0.0003029,7]
[342175703,1731533441564,-585.7194,0.0003029,7]
[342175704,1731533441574,-151.0,0.0003029,7]
[342175705,1731533441583,-585.7194,0.0003029,7]
[342175706,1731533441592,-151.0,0.0003029,7]
[342175707,1731533441603,-585.7194,0.0003029,7]
[342175708,1731533441612,-151.0,0.0003029,7]
[342175709,1731533441621,-585.7194,0.0003029,7]
[342175710,1731533441630,-151.0,0.0003029,7]
[342175711,1731533441639,-585.7194,0.0003029,7]
[342175712,1731533441648,-151.0,0.0003029,7]
[342175713,1731533441658,-585.7194,0.0003029,7]
[342175714,1731533441667,-151.0,0.0003029,7]
[342175715,1731533441676,-585.7194,0.0003029,7]
[342175716,1731533441686,-151.0,0.0003029,7]
[342175717,1731533441695,-585.7194,0.0003029,7]
[342175718,1731533441708,-182.59584,0.0003029,7]
[342175719,1731533441717,-585.7194,0.0003029,7]
[342175720,1731533441727,-585.7194,0.0003029,7]
[342175721,1731533441737,-585.7194,0.0003029,7]
[342175722,1731533441748,-585.7194,0.0003029,7]
[342175723,1731533441760,-585.7194,0.0003029,7]
[342175724,1731533441774,-585.719396,0.0003029,7]
[342175725,1731533441786,-151.0,0.0003029,7]
[342175726,1731533441799,-233.536275,0.0003029,7]
[342175727,1731533441811,-151.0,0.0003029,7]
[342175728,1731533441823,-151.0,0.0003029,7]
[342175729,1731533441833,-151.0,0.0003029,7]
[342175730,1731533441843,-151.0,0.0003029,7]
[342175731,1731533441856,-151.0,0.0003029,7]
[342175732,1731533441868,-151.0,0.0003029,7]
[342175733,1731533441879,-151.0,0.0003029,7]
[342175734,1731533441891,-151.0,0.0003029,7]
[342175735,1731533441903,-151.0,0.0003029,7]
[342175736,1731533441915,-151.0,0.0003029,7]
[342175737,1731533441928,-151.0,0.0003029,7]
[342175738,1731533441939,-151.0,0.0003029,7]
[342175739,1731533441951,-151.0,0.0003029,7]
[342175740,1731533441966,-151.0,0.0003029,7]
[342175741,1731533441978,-151.0,0.0003029,7]
[342175742,1731533441990,-151.0,0.0003029,7]
[342175743,1731533442002,-151.0,0.0003029,7]
[342175744,1731533442013,-151.0,0.0003029,7]
[342175745,1731533442024,-151.0,0.0003029,7]
[342175746,1731533442035,-151.0,0.0003029,7]
[342175747,1731533442046,-151.0,0.0003029,7]
[342175748,1731533442057,-151.0,0.0003029,7]
[342175749,1731533442069,-151.0,0.0003029,7]
[342175750,1731533442081,-151.0,0.0003029,7]
[342175751,1731533442093,-151.0,0.0003029,7]
[342175752,1731533442104,-151.0,0.0003029,7]
[342175753,1731533442116,-152.443814,0.0003029,7]
[342175754,1731533442126,-597.496466,0.0003029,7]
[342175755,1731533442137,-597.496466,0.0003029,7]
[342175756,1731533442147,-597.496466,0.0003029,7]
[342175757,1731533442159,-597.496466,0.0003029,7]
[342175758,1731533442170,-597.496466,0.0003029,7]
[342175759,1731533442182,-597.496466,0.0003029,7]
[342175760,1731533442193,-597.496466,0.0003029,7]
[342175761,1731533442206,-597.496466,0.0003029,7]
[342175762,1731533442217,-597.496466,0.0003029,7]
[342175763,1731533442230,-597.496466,0.0003029,7]
[342175764,1731533442241,-597.496466,0.0003029,7]
[342175765,1731533442252,-597.496466,0.0003029,7]
[342175766,1731533442264,-597.496466,0.0003029,7]
[342175767,1731533442276,-597.496466,0.0003029,7]
[342175768,1731533442288,-597.496466,0.0003029,7]
[342175769,1731533442300,-394.34697,0.0003029,7]
[342175770,1731533442313,-597.496466,0.0003029,7]
[342175771,1731533442325,-394.34697,0.0003029,7]
[342175772,1731533442335,-597.496466,0.0003029,7]
[342175773,1731533442345,-597.496466,0.0003029,7]
[342175775,1731533442356,-597.496466,0.0003029,7]
[342175777,1731533442366,-394.34697,0.0003029,7]
[342175778,1731533442377,-597.496466,0.0003029,7]
[342175779,1731533442388,-394.34697,0.0003029,7]
[342175780,1731533442402,-394.34697,0.0003029,7]
[342175781,1731533442415,-394.34697,0.0003029,7]
[342175782,1731533442427,-394.34697,0.0003029,7]
[342175783,1731533442438,-394.34697,0.0003029,7]
[342175784,1731533442449,-394.34697,0.0003029,7]
[342175785,1731533442467,-394.34697,0.0003029,7]
[342175786,1731533442480,-394.34697,0.0003029,7]
[342175787,1731533442492,-394.34697,0.0003029,7]
[342175788,1731533442503,-394.34697,0.0003029,7]
[342175790,1731533442515,-394.34697,0.0003029,7]
[342175791,1731533442526,-394.34697,0.0003029,7]
[342175793,1731533442536,-394.34697,0.0003029,7]
[342175795,1731533442546,-394.34697,0.0003029,7]
[342175796,1731533442556,-394.34697,0.0003029,7]
[342175797,1731533442567,-394.34697,0.0003029,7]
[342175798,1731533442579,-394.346974,0.0003029,7]
[342175799,1731533442589,-1544.37062372,0.00030293,2]
[342175800,1731533442600,-1213.30789606,0.00030293,2]
[342175802,1731533442611,-114628.23016012,0.00030293,10]
[342175804,1731533442628,-1772.665,0.00030293,10]
[342175806,1731533442640,-6448.51600528,0.00030293,10]
[342175811,1731533442694,-946.20500004,0.00030293,10]
[342175822,1731533442935,-10.04043867,0.00026454,2]
[342175823,1731533443013,-810.04177661,0.00026454,2]
[342175824,1731533443023,-809.02,0.00027641,10]
[342175825,1731533443033,-1509.153,0.00028347,15]
[342175826,1731533443044,-820.08221528,0.00030293,7]
[342175827,1731533443054,-820.08221528,0.00030293,7]
[342175828,1731533443065,-5905.49100517,0.00030293,10]
[342175829,1731533443078,-1799.21182988,0.00030293,10]
[342175852,1731533445795,-1608.0,0.00028347,15]
[342175854,1731533445806,-172.6912217,0.00030223,2]
[342175856,1731533445817,-17.13864826,0.00030223,2]
[342175858,1731533445830,-400.11282532,0.00030223,2]
[342175861,1731533445843,-517.23029161,0.00030223,2]
[342175863,1731533445854,-175686.7697084,0.00030293,10]
[342176011,1731533891603,160.906756,0.00013973,2]
[342176013,1731534144024,3411.8115521,0.00027,60]
[342176014,1731534384663,151.28430552,0.00027,60]
[342176023,1731534620515,160.906756,0.00013973,2]
[342176071,1731534632167,-1169.27083333,0.0002,2]
[342176073,1731534632177,-161.0,0.00022,2]
[342176076,1731534632187,-168.0,0.00022,2]
[342176078,1731534632198,-168.0,0.00022192,2]
[342176079,1731534632208,-167.02875,0.00022653,2]
[342176081,1731534632217,-1833.4268649,0.00022713,2]
[342176084,1731534632227,-277.31532,0.00022813,2]
[342176086,1731534632239,-703.1294975,0.00022845,2]
[342176088,1731534632249,-216.96747708,0.00022914,2]
[342176090,1731534632258,-161.0,0.00023014,2]
[342176092,1731534632268,-168.0,0.00023014,2]
[342176094,1731534632277,-174.693309,0.00023927,2]
[342176096,1731534632287,-300.0,0.0002413,2]
[342176098,1731534632296,-300.0,0.0002413,2]
[342176100,1731534632306,-7578.63529138,0.00024131,2]
[342176102,1731534632317,-493.18412759,0.00024131,2]
[342176256,1731534638278,-16828.18058103,0.00024131,2]
[342176257,1731534638288,-169.0,0.00024164,2]
[342176258,1731534638297,-505.56950853,0.00024173,2]
[342176259,1731534638307,-206.289839,0.00024256,2]
[342176260,1731534638317,-2040.55825,0.00024395,2]
[342176261,1731534638327,-272.60182145,0.00024614,2]
[342176262,1731534638340,-268.95,0.00024614,2]
[342176316,1731534640181,-76.04327855,0.00024614,2]
[342176318,1731534640190,-300.0,0.00025,2]
[342176320,1731534640200,-270.2,0.00025,2]
[342176322,1731534640209,-617.5951,0.00025299,2]
[342176324,1731534640218,-581.67,0.000254,2]
[342176326,1731534640228,-160.0,0.00025743,3]
[342176328,1731534640237,-617.5951,0.00025984,2]
[342176330,1731534640247,-300.0,0.00026,2]
[342176332,1731534640256,-339.04,0.00026,2]
[342176334,1731534640265,-466.11132927,0.00026361,2]
[342176336,1731534640275,-660.0,0.00026384,2]
[342176338,1731534640284,-172.699,0.00026481,13]
[342176340,1731534640293,-400.0,0.00026542,2]
[342176342,1731534640302,-168.0,0.00026581,2]
[342176345,1731534640312,-152.36,0.000266,31]
[342176347,1731534640321,-152.36,0.000266,31]
[342176349,1731534640330,-160.0,0.00026676,4]
[342176351,1731534640339,-500.0,0.00026685,7]
[342176353,1731534640348,-300.0,0.00027,2]
[342176355,1731534640360,-500.0,0.00027397,4]
[342176357,1731534640369,-500.0,0.00027397,4]
[342176359,1731534640378,-500.0,0.00027397,4]
[342176361,1731534640388,-500.0,0.00027397,4]
[342176363,1731534640397,-500.0,0.00027397,4]
[342176365,1731534640406,-564.04554035,0.00027397,4]
[342176366,1731534640415,-500.0,0.00027397,4]
[342176367,1731534640424,-500.0,0.00027397,4]
[342176368,1731534640434,-500.0,0.00027397,4]
[342176369,1731534640443,-500.0,0.00027397,4]
[342176370,1731534640453,-500.0,0.00027397,4]
[342176371,1731534640462,-500.0,0.00027397,4]
[342176372,1731534640472,-500.0,0.00027397,4]
[342176373,1731534640482,-500.0,0.00027397,4]
[342176374,1731534640492,-500.0,0.00027397,4]
[342176375,1731534640502,-500.0,0.00027397,4]
[342176376,1731534640513,-500.0,0.00027397,4]
[342176377,1731534640523,-208.17277621,0.00027397,4]
[342176378,1731534640534,-510.65189682,0.00027397,4]
[342176379,1731534640544,-500.0,0.00027397,4]
[342176380,1731534640555,-500.0,0.00027397,4]
[342176381,1731534640565,-500.0,0.00027397,4]
[342176382,1731534640576,-500.0,0.00027397,4]
[342176383,1731534640586,-500.0,0.00027397,4]
[342176384,1731534640597,-500.0,0.00027397,4]
[342176385,1731534640612,-851.57,0.00027397,4]
[342176386,1731534640621,-500.0,0.00027397,4]
[342176387,1731534640631,-500.0,0.00027397,4]
[342176388,1731534640640,-500.0,0.00027397,4]
[342176389,1731534640650,-906.02,0.00027397,4]
[342176390,1731534640659,-500.0,0.00027397,4]
[342176391,1731534640668,-876.5,0.00027397,4]
[342176392,1731534640678,-266.26362924,0.00027397,4]
[342176393,1731534640688,-500.0,0.00027397,4]
[342176394,1731534640697,-500.0,0.00027397,4]
[342176395,1731534640706,-500.0,0.00027397,4]
[342176396,1731534640715,-317.84967441,0.00027397,4]
[342176397,1731534640724,-500.0,0.00027397,4]
[342176398,1731534640734,-500.0,0.00027397,4]
[342176399,1731534640743,-500.0,0.00027397,4]
[342176400,1731534640754,-505.78,0.00027397,4]
[342176401,1731534640763,-500.0,0.00027397,4]
[342176402,1731534640772,-500.0,0.00027397,4]
[342176403,1731534640781,-500.0,0.00027397,4]
[342176404,1731534640791,-500.0,0.00027397,4]
[342176405,1731534640800,-500.0,0.00027397,4]
[342176406,1731534640809,-500.0,0.00027397,4]
[342176407,1731534640820,-500.0,0.00027397,4]
[342176408,1731534640836,-500.0,0.00027397,4]
[342176409,1731534640845,-2815.21,0.00027397,4]
[342176410,1731534640854,-500.0,0.00027471,5]
[342176411,1731534640867,-152.36,0.000276,31]
[342176412,1731534640877,-152.36,0.000276,31]
[342176413,1731534640886,-152.36,0.000276,31]
[342176414,1731534640896,-152.36,0.000276,31]
[342176415,1731534640907,-160.0,0.00027608,5]
[342176416,1731534640916,-168.0,0.00027616,2]
[342176417,1731534640925,-500.0,0.00027671,4]
[342176418,1731534640935,-500.0,0.00027671,4]
[342176419,1731534640944,-500.0,0.00027671,4]
[342176420,1731534640954,-500.0,0.00027671,4]
[342176421,1731534640963,-500.0,0.00027671,4]
[342176422,1731534640972,-500.0,0.00027671,4]
[342176423,1731534640981,-500.0,0.00027671,4]
[342176424,1731534640990,-500.0,0.00027671,4]
[342176425,1731534640999,-500.0,0.00027671,4]
[342176426,1731534641009,-495.93,0.00027671,4]
[342176427,1731534641020,-500.0,0.00027671,4]
[342176428,1731534641029,-500.0,0.00027671,4]
[342176429,1731534641039,-545.11,0.00027671,4]
[342176430,1731534641048,-500.0,0.00027671,4]
[342176431,1731534641057,-500.0,0.00027671,4]
[342176432,1731534641066,-500.0,0.00027671,4]
[342176433,1731534641075,-851.57,0.00027671,4]
[342176434,1731534641084,-482.06895127,0.00027671,4]
[342176435,1731534641093,-906.02,0.00027671,4]
[342176436,1731534641102,-455.79040599,0.00027671,4]
[342176437,1731534641119,-876.5,0.00027671,4]
[342176438,1731534641129,-500.0,0.00027671,4]
[342176439,1731534641138,-500.0,0.00027671,4]
[342176440,1731534641147,-505.78,0.00027671,4]
[342176441,1731534641156,-201.5,0.00027671,4]
[342176442,1731534641165,-500.0,0.00027671,4]
[342176443,1731534641174,-500.0,0.00027671,4]
[342176444,1731534641183,-500.0,0.00027671,4]
[342176445,1731534641192,-500.0,0.00027671,4]
[342176446,1731534641201,-500.0,0.00027671,4]
[342176447,1731534641211,-2815.21,0.00027671,4]
[342176448,1731534641220,-465.05556646,0.00027679,2]
[342176449,1731534641229,-500.0,0.00027747,5]
[342176450,1731534641238,-150.0,0.00027798,2]
[342176451,1731534641248,-530.0,0.00027798,2]
[342176452,1731534641257,-2389.0,0.00027798,2]
[342176453,1731534641266,-1117.0,0.00027798,2]
[342176454,1731534641275,-615.63,0.00027935,3]
[342176455,1731534641285,-378.73,0.00027935,10]
[342176456,1731534641294,-651.45,0.00027935,10]
[342176457,1731534641304,-542.88,0.00027935,10]
[342176458,1731534641313,-500.0,0.00027944,5]
[342176459,1731534641323,-500.0,0.00027945,4]
[342176460,1731534641332,-500.0,0.00027945,4]
[342176461,1731534641341,-500.0,0.00027945,4]
[342176462,1731534641350,-500.0,0.00027945,4]
[342176463,1731534641363,-500.0,0.00027945,4]
[342176464,1731534641372,-500.0,0.00027945,4]
[342176465,1731534641381,-500.0,0.00027945,4]
[342176466,1731534641389,-500.0,0.00027945,4]
[342176467,1731534641398,-500.0,0.00027945,4]
[342176468,1731534641407,-201.05,0.00027945,4]
[342176469,1731534641416,-500.0,0.00027945,4]
[342176470,1731534641425,-500.0,0.00027945,4]
[342176471,1731534641435,-159.99,0.00027945,4]
[342176472,1731534641443,-851.57,0.00027945,4]
[342176473,1731534641453,-906.02,0.00027945,4]
[342176474,1731534641462,-876.5,0.00027945,4]
[342176475,1731534641471,-500.0,0.00027945,4]
[342176476,1731534641480,-500.0,0.00027945,4]
[342176477,1731534641490,-505.78,0.00027945,4]
[342176478,1731534641499,-500.0,0.00027945,4]
[342176479,1731534641509,-500.0,0.00027945,4]
[342176480,1731534641518,-500.0,0.00027945,4]
[342176481,1731534641527,-500.0,0.00027945,4]
[342176482,1731534641536,-263.2,0.00027945,4]
[342176483,1731534641545,-500.0,0.00027945,5]
[342176484,1731534641554,-300.0,0.00028,2]
[342176485,1731534641564,-339.04,0.00028,2]
[342176486,1731534641573,-1000.0,0.00028019,5]
[342176487,1731534641582,-162.792,0.0002817,2]
[342176488,1731534641591,-452.4,0.00028209,10]
[342176489,1731534641600,-500.0,0.00028219,4]
[342176490,1731534641612,-500.0,0.00028219,4]
[342176491,1731534641621,-292.41479881,0.00028219,4]
[342176492,1731534641630,-500.0,0.00028219,4]
[342176493,1731534641640,-500.0,0.00028219,4]
[342176494,1731534641649,-500.0,0.00028219,4]
[342176495,1731534641658,-500.0,0.00028219,4]
[342176496,1731534641763,-250.97,0.00028219,4]
[342176497,1731534641773,-500.0,0.00028219,4]
[342176498,1731534641783,-500.0,0.00028219,4]
[342176499,1731534641792,-500.0,0.00028219,4]
[342176500,1731534641802,-851.57,0.00028219,4]
[342176501,1731534641812,-906.02,0.00028219,4]
[342176502,1731534641824,-876.5,0.00028219,4]
[342176503,1731534641833,-500.0,0.00028219,4]
[342176504,1731534641842,-500.0,0.00028219,4]
[342176505,1731534641851,-505.78,0.00028219,4]
[342176506,1731534641869,-500.0,0.00028219,4]
[342176507,1731534641878,-500.0,0.00028219,4]
[342176508,1731534641887,-500.0,0.00028219,4]
[342176509,1731534641899,-500.0,0.00028329,7]
[342176510,1731534641908,-1540.061107,0.00028347,15]
[342176511,1731534641918,-200.0,0.00028492,2]
[342176512,1731534641927,-355.13779245,0.00028492,2]
[342176513,1731534641935,-513.87367615,0.00028492,2]
[342176514,1731534641945,-500.0,0.00028493,4]
[342176515,1731534641954,-500.0,0.00028493,4]
[342176516,1731534641964,-500.0,0.00028493,4]
[342176517,1731534641974,-500.0,0.00028493,4]
[342176518,1731534641983,-229.79,0.00028493,4]
[342176519,1731534641991,-372.83,0.00028493,4]
[342176520,1731534642001,-500.0,0.00028493,4]
[342176521,1731534642011,-500.0,0.00028493,4]
[342176522,1731534642021,-851.57,0.00028493,4]
[342176523,1731534642030,-906.02,0.00028493,4]
[342176524,1731534642039,-876.5,0.00028493,4]
[342176525,1731534642048,-595.56634747,0.00028493,4]
[342176526,1731534642057,-500.0,0.00028493,4]
[342176527,1731534642067,-505.78,0.00028493,4]
[342176528,1731534642076,-500.0,0.00028493,4]
[342176529,1731534642086,-500.0,0.00028493,4]
[342176530,1731534642096,-574.0,0.00028493,4]
[342176531,1731534642106,-1000.0,0.00028493,5]
[342176532,1731534642119,-152.36,0.000285,31]
[342176533,1731534642128,-152.36,0.000285,31]
[342176534,1731534642137,-152.36,0.000285,31]
[342176535,1731534642146,-152.36,0.000285,31]
[342176536,1731534642156,-160.0,0.00028541,6]
[342176537,1731534642165,-162.712,0.0002863,2]
[342176538,1731534642175,-500.0,0.0002869,2]
[342176539,1731534642184,-500.0,0.000287,28]
[342176540,1731534642193,-500.0,0.00028767,7]
[342176541,1731534642202,-500.0,0.00028767,4]
[342176542,1731534642211,-500.0,0.00028767,4]
[342176543,1731534642221,-500.0,0.00028767,4]
[342176544,1731534642230,-500.0,0.00028767,4]
[342176545,1731534642239,-500.0,0.00028767,4]
[342176546,1731534642248,-500.0,0.00028767,4]
[342176547,1731534642257,-851.57,0.00028767,4]
[342176548,1731534642266,-906.02,0.00028767,4]
[342176549,1731534642275,-876.5,0.00028767,4]
[342176550,1731534642284,-500.0,0.00028767,4]
[342176551,1731534642293,-505.78,0.00028767,4]
[342176552,1731534642303,-500.0,0.00028767,4]
[342176553,1731534642313,-500.0,0.00028767,4]
[342176554,1731534642322,-162.724,0.0002878,10]
[342176555,1731534642331,-150.0,0.00028817,120]
[342176556,1731534642340,-168.0,0.00028997,2]
[342176557,1731534642349,-300.0,0.00029,2]
[342176558,1731534642363,-481.00814949,0.00029021,5]
[342176559,1731534642372,-500.0,0.00029041,4]
[342176560,1731534642381,-500.0,0.00029041,4]
[342176561,1731534642390,-500.0,0.00029041,4]
[342176562,1731534642400,-346.81884562,0.00029041,4]
[342176563,1731534642409,-151.0,0.00029041,7]
[342176564,1731534642418,-500.0,0.00029041,4]
[342176565,1731534642427,-500.0,0.00029041,4]
[342176566,1731534642437,-851.57,0.00029041,4]
[342176567,1731534642446,-906.02,0.00029041,4]
[342176568,1731534642455,-876.5,0.00029041,4]
[342176569,1731534642464,-500.0,0.00029041,4]
[342176570,1731534642473,-505.78,0.00029041,4]
[342176571,1731534642482,-500.0,0.00029041,4]
[342176573,1731534642492,-500.0,0.00029041,4]
[342176574,1731534642501,-2500.0,0.00029054,2]
[342176576,1731534642510,-600.0,0.00029081,2]
[342176578,1731534642519,-500.0,0.0002919,2]
[342176580,1731534642529,-162.739,0.0002923,120]
[342176581,1731534642538,-501.512,0.00029294,2]
[342176582,1731534642547,-500.0,0.00029315,4]
[342176583,1731534642556,-500.0,0.00029315,4]
[342176584,1731534642566,-500.0,0.00029315,4]
[342176585,1731534642575,-500.0,0.00029315,4]
[342176586,1731534642584,-500.0,0.00029315,4]
[342176587,1731534642594,-851.57,0.00029315,4]
[342176588,1731534642604,-906.02,0.00029315,4]
[342176589,1731534642617,-876.5,0.00029315,4]
[342176590,1731534642627,-500.0,0.00029315,4]
[342176591,1731534642637,-505.78,0.00029315,4]
[342176592,1731534642646,-500.0,0.00029315,4]
[342176594,1731534642656,-500.0,0.00029315,4]
[342176596,1731534642665,-153.0,0.00029342,30]
[342176597,1731534642675,-153.0,0.00029342,30]
[342176598,1731534642684,-153.0,0.00029342,30]
[342176600,1731534642694,-153.0,0.00029342,30]
[342176601,1731534642703,-153.0,0.00029342,30]
[342176602,1731534642713,-153.0,0.00029342,30]
[342176604,1731534642722,-153.0,0.00029342,30]
[342176606,1731534642731,-153.0,0.00029342,30]
[342176607,1731534642740,-153.0,0.00029342,30]
[342176608,1731534642751,-600.0,0.00029384,2]
[342176609,1731534642760,-162.711,0.0002939,7]
[342176611,1731534642770,-24.75395478,0.000294,2]
[342176612,1731534642897,-590.24604522,0.000294,2]
[342176613,1731534642908,-160.0,0.00029474,7]